Cogmind - Beta 14 @@@ ROGUE MODE // 2025.02.23 @ 15:06:28 Player: Zeta Lockhart Result: Destroyed by Y-64 Sentinel with Wave Gun Performance ------------- Evolutions (6) 3000 Regions Visited (15) 3000 Robots Destroyed (137) 685 Value Destroyed (5224) 5224 Prototype IDs (5) 100 Alien Tech Used (0) 0 Bonus (1304) 1304 TOTAL SCORE: 13313 Bonus ------- High Alert Combat Kills 263 Follower Combat Kills 41 Met Warlord at Base 500 MAIN.C Attacked Warlord 500 Cogmind --------- Core Integrity 0/1150 Matter 280/300 Energy 100/100 System Corruption 26% Temperature Cool (9) Movement Core (200) Ox3 Location -4/Factory Parts ------- > --- POWER (3) -------- (None) > --- PROPULSION (4) --- (None) > --- UTILITY (6) ------ (None) > --- WEAPON (6) ------- Heavy Tesla Rifle Heavy Tesla Rifle > --- INVENTORY (5) ---- Wheel Improved Coolant Injector Recalibrator Improved Field Recycling Unit (0) Peak State ------------ > --- POWER ------------ Light Fission Core Antimatter Reactor Light Antimatter Reactor > --- PROPULSION ------- Carbon-fiber Leg Carbon-fiber Leg Flexi-carbon Leg Flexi-carbon Leg > --- UTILITY ---------- Advanced Heat Sink Advanced Heat Sink Coolant Injector High-capacity Storage Unit Medium Reflective Plating > --- WEAPON ----------- Gamma Rifle Phase Cannon Heavy Machine Gun Mass Driver Improved Proton Missile Launcher > --- INVENTORY -------- Reinforced Deuterium Engine Neutrino Core Micro Fission Core Advanced Heat Sink Advanced Heat Sink Advanced Heat Sink Energy Well Tactical Coordination Suite Layered Light Armor Plating Layered Medium Armor Plating Recalibrator Improved Field Recycling Unit Heavy Beamcaster Heavy Beamcaster Heavy Plasma Cannon Heavy Assault Rifle Gauss Rifle Heavy Flak Cannon Molecular Deconstructor [Rating: 93] Favorites ----------- Power Micro Nuclear Core Engine Improved Ion Engine Power Core Micro Nuclear Core Reactor Light Antimatter Reactor Propulsion Wheel Treads Medium Treads Leg Carbon-fiber Leg Wheel Wheel Flight Unit VTOL Module Utility Improved Heat Sink Device Improved Heat Sink Storage High-capacity Storage Unit Protection Layered Medium Armor Plating Weapon Phase Cannon Energy Gun Heavy Beamcaster Energy Cannon Phase Cannon Ballistic Gun Gauss Rifle Ballistic Cannon Mass Driver Launcher Improved Proton Missile Launcher Special Weapon Molecular Deconstructor Build | -11 -10 -10 -9 -9 -8 -7 -7 -7 -6 -5 -5 -5 -5 -4 -4 ------- Run | Yrd Mat Min Mat Min Mat Fac Was Fac Fac Fac Upp Upp War Pro Fac Slots Evolved 12 | . . . 2 . 2 2 . . 2 2 . . . . 2 Power 2 | . . . . . . 1 . . . 1 . . . . . Propulsion 2 | . . . . . . 1 . . 1 . . . . . . Utility 4 | . . . 1 . 1 . . . . 1 . . . . 1 Weapon 4 | . . . 1 . 1 . . . 1 . . . . . 1 Parts Attached 169 | 7 11 3 11 3 7 6 1 27 7 5 16 14 10 19 22 Power 23 | 1 1 1 1 1 . 1 . 4 1 1 3 . 2 4 2 Engine 11 | 1 1 1 1 1 . . . 3 . . . . . 1 2 Core 10 | . . . . . . 1 . 1 1 1 3 . . 3 . Reactor 2 | . . . . . . . . . . . . . 2 . . Propulsion 35 | 2 . 2 3 2 . 3 . 8 2 . 2 5 1 1 4 Treads 2 | . . . . . . . . 2 . . . . . . . Leg 6 | . . . . . . . . . . . . 5 1 . . Wheel 26 | 2 . 2 3 2 . 3 . 6 2 . 2 . . . 4 Hover . | . . . . . . . . . . . . . . . . Flight 1 | . . . . . . . . . . . . . . 1 . Utility 58 | 2 5 . 4 . 4 1 1 7 1 3 4 4 6 7 9 Device 36 | 1 2 . 2 . 3 1 1 3 . 3 2 2 5 4 7 Storage 8 | 1 3 . . . 1 . . 1 1 . . . . . 1 Processor . | . . . . . . . . . . . . . . . . Hackware . | . . . . . . . . . . . . . . . . Protection 14 | . . . 2 . . . . 3 . . 2 2 1 3 1 Artifact . | . . . . . . . . . . . . . . . . Weapon 53 | 2 5 . 3 . 3 1 . 8 3 1 7 5 1 7 7 Energy Gun 21 | 1 1 . 2 . 3 1 . 4 . . . . 1 3 5 Energy Cannon 8 | . . . . . . . . 1 2 . 2 2 . 1 . Ballistic Gun 11 | 1 2 . 1 . . . . . 1 . 1 1 . 2 2 Ballistic Cannon 8 | . . . . . . . . 3 . 1 2 1 . 1 . Launcher 4 | . 2 . . . . . . . . . 1 1 . . . Special Weapon 1 | . . . . . . . . . . . 1 . . . . Impact Weapon . | . . . . . . . . . . . . . . . . Slashing Weapon . | . . . . . . . . . . . . . . . . Piercing Weapon . | . . . . . . . . . . . . . . . . Special Melee Weapon . | . . . . . . . . . . . . . . . . Unidentified Prototypes 5 | . . . . . 1 . . 2 . . 1 . . . 1 Corrupted Parts 17 | . . . . . 1 . . 1 . . . 6 . 6 3 System Corruption 121 | . . . . . 2 . . 10 . . . 52 . 34 23 Parts Lost 92 | . 3 1 . . 1 . 6 3 3 2 18 9 . 25 21 Power 15 | . . 1 . . . . 1 1 . . 3 . . 5 4 Propulsion 16 | . . . . . . . . . 1 1 4 2 . 4 4 Utility 25 | . 1 . . . . . 2 2 . 1 4 3 . 6 6 Weapon 36 | . 2 . . . 1 . 3 . 2 . 7 4 . 10 7 Highest Loss Streak 12 | . 3 1 . . 1 . 6 2 2 2 12 4 . 11 12 To Critical Strikes 1 | . . . . . . . 1 . . . . . . . . Average Slot Usage (%) 79 | . 98 99 98 94 95 93 36 85 94 94 78 80 93 60 41 Engine 3 | . 14 13 11 11 9 7 2 7 6 5 1 . . . 3 Core 8 | . . . . . . 7 2 4 6 6 14 17 14 4 1 Leg 3 | . . . . . . . . . . . . 6 17 3 . Wheel 7 | . 28 28 22 17 18 19 8 17 21 21 9 . . . 4 Device 14 | . 13 14 12 11 15 14 7 8 13 16 14 16 17 12 14 Storage 5 | . 14 14 11 11 9 7 2 6 6 5 5 5 5 5 3 Protection 5 | . . . 9 11 9 7 . 10 6 5 4 5 4 4 . Energy Gun 6 | . 13 14 22 22 28 28 11 6 9 5 1 . . 8 4 Energy Cannon 6 | . . . . . . . . 4 6 11 10 13 10 1 1 Ballistic Gun 4 | . 13 14 11 11 5 . . . 6 4 . 4 5 4 5 Ballistic Cannon 4 | . . . . . . . . 14 9 5 6 1 5 4 . Launcher 1 | . . . . . . . . . . . . 4 5 . . Peak Build Rating 93 | 7 8 8 20 20 28 30 34 44 48 61 65 74 93 93 48 Average Rating 49 | 5 7 7 15 18 24 28 13 37 44 55 61 62 73 54 28 On Entrance 32 | . 7 8 8 20 20 24 30 2 39 48 58 54 69 93 35 Naked Turns 125 | . . . . . . . 82 . . . . . . . 43 Heaviest Build 122 | 11 27 27 39 38 42 48 51 75 96 106 106 105 121 122 100 Greatest Support 70 | 26 26 26 26 24 24 36 36 36 58 58 58 65 70 70 46 Greatest Overweight (x) 32 | . 1 1 1 3 1 1 6 6 2 2 10 32 2 26 24 Average Overweight (x) 3 | . . . 1 1 1 1 . 2 1 1 5 6 1 11 . Largest Inventory Capacity 25 | 8 25 15 15 15 15 15 15 15 20 20 20 20 20 20 20 Average Capacity 18 | 7 13 15 15 15 15 15 9 13 16 20 20 20 20 20 14 Most Carried 20 | 6 15 15 15 15 15 14 14 15 18 20 20 19 20 20 6 Average Carried 14 | 2 8 14 14 14 14 12 8 9 15 18 14 16 16 16 3 Final Capacity 20 | 8 15 15 15 15 15 15 5 15 20 20 20 20 20 20 5 Final Carried 20 | 6 15 15 15 15 15 12 5 15 18 20 18 16 20 7 4 Class Distribution -------------------- 76% | Scavenger-Tank 8% | Mutant 5% | Scavenger-Mutant 5% | Tank Dominant Class ---------------- Mutant | -10/Materials Scavenger-Mutant | -10/Mines Scavenger-Tank | -9/Materials Tank | -9/Mines Scavenger-Skirmisher | -8/Materials Tank | -7/Factory Mutant | -7/Waste Scavenger-Tank | -7/Factory Scavenger-Tank | -6/Factory Scavenger-Tank | -5/Factory Scavenger-Tank | -5/Upper Caves Scavenger-Tank | -5/Upper Caves Scavenger-Tank | -5/Warlord Scavenger-Tank | -4/Proximity Caves Mutant | -4/Factory Resources | -11 -10 -10 -9 -9 -8 -7 -7 -7 -6 -5 -5 -5 -5 -4 -4 ----------- Run | Yrd Mat Min Mat Min Mat Fac Was Fac Fac Fac Upp Upp War Pro Fac Matter Collected 3992 | 279 176 25 405 40 113 . 80 618 71 232 546 456 188 404 359 Remotely 96 | 22 74 . . . . . . . . . . . . . . Salvage Created 5978 | 165 324 13 646 214 258 . . 1060 123 396 918 734 . 650 477 Parts 283 | 9 22 . 33 6 18 . . 47 5 21 36 35 . 32 19 Haulers Intercepted 1 | . . . . . . . . . . . . . . 1 . Recyclers Shooed 11 | . 2 1 2 2 . . . 1 . . . . . . 3 Parts Field Recycled . | . . . . . . . . . . . . . . . . Retrieved Matter . | . . . . . . . . . . . . . . . . Parts Self-Destructed 66 | . . . . . . . . . . . 25 18 . 23 . Prevented 32 | . . . . . . . . . . . 10 12 . 10 . Kills | -11 -10 -10 -9 -9 -8 -7 -7 -7 -6 -5 -5 -5 -5 -4 -4 ------- Run | Yrd Mat Min Mat Min Mat Fac Was Fac Fac Fac Upp Upp War Pro Fac Combat Hostiles Destroyed 103 | . 9 1 10 3 4 . . 19 2 4 15 14 . 18 4 Guns 37 | . 5 1 10 3 4 . . 4 . . . 1 . 6 3 Cannons 50 | . . . . . . . . 13 1 4 14 8 . 10 . AOE 13 | . 4 . . . . . . 2 . . . 5 . 2 . Classes Destroyed 16 | 2 3 . 1 1 2 . . 3 . . 2 . . 2 . Worker 6 | . . . . . . . . 2 1 . . . . . 3 Builder 3 | . . . . . 1 . . 1 . 1 . . . . . Tunneler 5 | 3 1 . 1 . . . . . . . . . . . . Hauler 1 | . . . . . . . . . . . . . . 1 . Recycler 11 | 1 1 . 2 1 . . . 4 . 1 . . . . 1 Operator 1 | . . . . . . . . 1 . . . . . . . Drone 1 | . . . . . . . . . . . . . . 1 . Watcher 7 | . 1 . 2 . 1 . . 2 . 1 . . . . . Swarmer 28 | . 3 1 . . . . . 4 . . 4 4 . 12 . Grunt 42 | . 6 . 6 2 . . . 10 . . 2 8 . 4 4 Duelist 2 | . . . . 1 . . . . . . 1 . . . . Sentry 9 | . . . 4 . 1 . . 1 2 . 1 . . . . Specialist 3 | . . . . . . . . . . . 3 . . . . Hunter 9 | . . . . . 3 . . 1 . 2 2 1 . . . Programmer 7 | . . . . . . . . 3 . 2 1 . . 1 . Behemoth 2 | . . . . . . . . . . . 1 1 . . . Best Kill Streak 8 | 4 4 1 7 4 2 . . 7 2 2 5 8 . 8 3 Combat Bots Only 8 | . 3 1 2 3 2 . . 4 1 2 5 8 . 8 2 Max Kills in Single Turn 4 | 2 2 1 2 1 1 . . 2 1 1 1 4 . 2 1 Gunslinging . | . . . . . . . . . . . . . . . . Exploded 3 | . 2 . . . . . . 2 . . . 3 . 1 . Melee . | . . . . . . . . . . . . . . . . Uniques/NPCs Destroyed . | . . . . . . . . . . . . . . . . Combat | -11 -10 -10 -9 -9 -8 -7 -7 -7 -6 -5 -5 -5 -5 -4 -4 -------- Run | Yrd Mat Min Mat Min Mat Fac Was Fac Fac Fac Upp Upp War Pro Fac Hostile Shots Fired 921 | . 41 9 26 24 28 . 6 88 36 28 177 96 . 231 131 Missed 255 | . 4 2 10 5 5 . . 30 14 7 50 32 . 61 35 Damage Taken 12417 | . 416 55 192 263 373 . 242 900 301 315 2351 1384 52 3050 2523 Core 2537 | . 90 19 49 70 95 . 135 34 68 . 180 141 . 485 1171 Absorbed by Shields 8 | . . . . . . . . 8 . . . . . . . Redirected to Shielding 37 | . . . . 28 9 . . . . . . . . . . Ignored by Resistances 174 | . . . . . . . . 12 18 46 28 . . 70 . Regen/Repaired (Parts) 689 | . . . . . . 230 . 167 . . . . 292 . . Core Remaining (%) 70 | 100 . 56 . 70 82 . . 75 92 . . . . 19 . Volleys Fired 308 | 9 22 9 32 11 13 . 9 43 6 11 38 26 . 52 27 Largest 5 | 2 2 2 3 3 4 . 4 4 5 5 5 5 . 5 4 Hottest 290 | 60 70 70 129 129 221 . 221 236 246 266 270 281 . 290 213 Shots Fired 938 | 18 44 18 96 33 46 . 30 134 29 51 134 108 . 132 65 Gun 516 | 18 38 18 96 33 46 . 30 41 12 16 19 18 . 75 56 Cannon 372 | . . . . . . . . 93 17 35 100 66 . 52 9 Launcher 43 | . 6 . . . . . . . . . 8 24 . 5 . Special 7 | . . . . . . . . . . . 7 . . . . Kinetic 370 | 9 16 9 32 11 10 . . 69 13 22 55 38 . 57 29 Thermal 429 | 9 22 9 64 22 23 . 24 41 16 29 45 46 . 46 33 Explosive 6 | . 6 . . . . . . . . . . . . . . Electromagnetic 126 | . . . . . 13 . 6 24 . . 27 24 . 29 3 Robot Hit Streak 17 | 3 5 4 9 12 8 . 17 10 4 10 8 7 . 8 10 Robot Miss Streak 16 | 2 3 3 3 2 3 . 3 5 4 6 5 3 . 16 2 Penetration Max 1 | . . . . . . . . 1 . . . 1 . . . Secondary Targets 3 | . . 1 . 1 . . . . . . . . . . 1 Max Gunslinging Chain 1 | . . 1 . 1 . . . . . . . . . . 1 Shots Hit Robots 527 | 9 24 11 58 23 28 . 26 72 13 34 72 54 . 58 45 Core Hits 289 | 6 23 4 26 8 13 . 6 51 6 20 30 30 . 45 21 Critical Kills 2 | . . . . . . . . . 1 . . . . . 1 Critical Parts Destroyed . | . . . . . . . . . . . . . . . . Critical Strikes 30 | . . 1 5 2 2 . 2 8 1 1 4 1 . 2 1 Burn 15 | . . 1 5 2 2 . 2 . . . 1 . . 2 . Meltdown 2 | . . . . . . . . . 1 . . . . . 1 Blast 9 | . . . . . . . . 5 . 1 2 1 . . . Corrupt 4 | . . . . . . . . 3 . . 1 . . . . Melee Attacks . | . . . . . . . . . . . . . . . . Impact . | . . . . . . . . . . . . . . . . Slashing . | . . . . . . . . . . . . . . . . Piercing . | . . . . . . . . . . . . . . . . Sneak Attacks . | . . . . . . . . . . . . . . . . Combat Hostiles . | . . . . . . . . . . . . . . . . Follow-up Attacks . | . . . . . . . . . . . . . . . . Damage Inflicted 13790 | 99 598 104 826 334 474 . 418 2376 232 754 1996 2107 . 2378 1094 Guns 5264 | 99 235 104 826 334 474 . 418 608 88 138 267 196 . 704 773 Cannons 5675 | . . . . . . . . 1351 144 616 1526 1041 . 742 255 Explosions 2769 | . 363 . . . . . . 416 . . 203 870 . 917 . Melee . | . . . . . . . . . . . . . . . . Ramming 82 | . . . . . . . . 1 . . . . . 15 66 Kinetic 4350 | 34 70 54 254 129 78 . . 1008 61 271 843 640 . 642 266 Thermal 6586 | 65 165 50 572 205 222 . 410 845 171 483 810 823 . 1083 682 Explosive 363 | . 363 . . . . . . . . . . . . . . Electromagnetic 2409 | . . . . . 174 . 8 522 . . 343 644 . 638 80 Impact . | . . . . . . . . . . . . . . . . Slashing . | . . . . . . . . . . . . . . . . Piercing . | . . . . . . . . . . . . . . . . Highest Corruption 52 | . 2 2 . . 2 . . 16 . . . 52 52 35 26 Average Corruption 12 | . 2 2 . . 2 . . 12 . . . 16 52 8 20 Corruption Purged . | . . . . . . . . . . . . . . . . Corruption Blocked . | . . . . . . . . . . . . . . . . Effects 174 | . 7 3 . . 3 . . 28 . . . 78 6 25 24 Message Errors 33 | . 2 . . . 1 . . 6 . . . 18 . 4 2 Matter Fused 43 | . 1 1 . . 1 . . 5 . . . 14 1 10 10 Heat Flow Errors 24 | . 1 2 . . . . . 4 . . . 10 2 2 3 Energy Discharges 20 | . 1 . . . . . . 4 . . . 9 3 1 2 Parts Rejected 2 | . . . . . . . . . . . . 1 . 1 . Parts Fused 3 | . . . . . . . . 1 . . . 1 . 1 . Data Loss (minor) 17 | . 2 . . . . . . 2 . . . 9 . 4 . Data Loss (major) 3 | . . . . . . . . . . . . 2 . 1 . Misfires 6 | . . . . . . . . 1 . . . 5 . . . Alerts 5 | . . . . . . . . 1 . . . 3 . 1 . Misdirections 3 | . . . . . . . . 1 . . . . . . 2 Weapon Failures 15 | . . . . . 1 . . 3 . . . 6 . . 5 Overload Shots . | . . . . . . . . . . . . . . . . Overflow Damage 244 | . 43 . . . . . . 78 . 8 14 56 . 44 1 Projectiles 134 | . . . . . . . . 78 . 8 14 24 . 9 1 Explosions 110 | . 43 . . . . . . . . . . 32 . 35 . Melee . | . . . . . . . . . . . . . . . . Knockbacks 22 | . . . . . . . . 10 . 2 2 2 . 5 1 Impact 1 | . . . . . . . . . . . . . . . 1 Kinetic 21 | . . . . . . . . 10 . 2 2 2 . 5 . Secondary . | . . . . . . . . . . . . . . . . Self-Inflicted Damage 408 | . . . . . . . . 118 . . 82 87 . 92 29 Shots 19 | . . . . . . . . 5 . . 4 6 . 4 . Rammed 20 | . . . . . . . . 1 . . . . . . 19 Targets Rammed 23 | . . . . . . . . 1 . . . . . 3 19 Kicked 3 | . . . . . . . . . . . . . . 3 . Crushed . | . . . . . . . . . . . . . . . . Highest Temperature 866 | 40 208 188 144 219 183 . 234 545 181 354 241 337 187 866 150 Average Temperature 111 | 19 50 45 52 110 62 . 119 176 68 149 72 129 95 153 48 Received Heat Transfer 1723 | . 168 . 69 102 18 . . 297 78 45 144 249 . 141 412 Effects 27 | . . . . . . . . 18 . . . 1 . 8 . Shutdowns 8 | . . . . . . . . 5 . . . . . 3 . Energy Bleed 3 | . . . . . . . . . . . . 1 . 2 . Interference 6 | . . . . . . . . 6 . . . . . . . Matter Decay 3 | . . . . . . . . 2 . . . . . 1 . Short Circuit 2 | . . . . . . . . 2 . . . . . . . Damage (minor) 1 | . . . . . . . . . . . . . . 1 . Damage (major) 3 | . . . . . . . . 3 . . . . . . . Damage (core) 1 | . . . . . . . . . . . . . . 1 . Siege Activations . | . . . . . . . . . . . . . . . . Robots Corrupted 1 | . . . . . . . . . . . 1 . . . . Combat Hostiles 1 | . . . . . . . . . . . 1 . . . . Parts Fried 4 | . . . . . . . . 1 . . 1 . . 2 . Impact Corruptions . | . . . . . . . . . . . . . . . . Robots Melted 2 | . . . . . . . . . 1 . . . . . 1 Combat Hostiles 2 | . . . . . . . . . 1 . . . . . 1 Parts Melted 24 | . . . 4 4 2 . . . 4 4 1 . . 2 3 Heat Transferred 12591 | 150 422 222 1938 703 706 . 873 1525 259 666 1197 1064 . 1494 1372 Parts Sabotaged . | . . . . . . . . . . . . . . . . Parts Stolen . | . . . . . . . . . . . . . . . . Parts Stripped . | . . . . . . . . . . . . . . . . Power Chain Reactions 9 | . . . . . . . . 2 . . 1 3 . 3 . Alert | -11 -10 -10 -9 -9 -8 -7 -7 -7 -6 -5 -5 -5 -5 -4 -4 ------- Run | Yrd Mat Min Mat Min Mat Fac Was Fac Fac Fac Upp Upp War Pro Fac Peak Influence 935 | 20 287 190 477 194 270 128 44 692 407 207 . . . . 935 Initial 900 | . 13 111 74 119 75 122 44 10 338 198 . . . . 900 Average 265 | 7 162 133 282 176 158 125 23 275 356 144 . . . . 867 Maximum Alert Level 3 | . 1 . 2 . 1 . . 2 2 1 . . . . 3 Low Security (%) 55 | 100 56 100 34 100 57 100 100 45 . 91 . . . . . Level 1 22 | . 43 . 43 . 42 . . 18 86 8 . . . . . Level 2 14 | . . . 21 . . . . 36 13 . . . . . 9 Level 3 7 | . . . . . . . . . . . . . . . 90 Level 4 . | . . . . . . . . . . . . . . . . Level 5 . | . . . . . . . . . . . . . . . . High Security . | . . . . . . . . . . . . . . . . Max Security . | . . . . . . . . . . . . . . . . Squads Dispatched 21 | . 1 . 3 . 2 . . 6 . 5 . . . . 4 Investigation 7 | . . . . . 2 . . 4 . . . . . . 1 Extermination 3 | . . . . . . . . 1 . 1 . . . . 1 Reinforcement 10 | . 1 . 3 . . . . 1 . 3 . . . . 2 Assault . | . . . . . . . . . . . . . . . . Garrison 1 | . . . . . . . . . . 1 . . . . . Intercept . | . . . . . . . . . . . . . . . . Searches Triggered 1 | . . . . . . . . . . . . . . . 1 Construction Impeded 2 | . . . . . . . . 1 . 1 . . . . . Haulers Reinforced . | . . . . . . . . . . . . . . . . Active Scanning Responses . | . . . . . . . . . . . . . . . . Cargo Convoy Interrupts . | . . . . . . . . . . . . . . . . Stealth | -11 -10 -10 -9 -9 -8 -7 -7 -7 -6 -5 -5 -5 -5 -4 -4 --------- Run | Yrd Mat Min Mat Min Mat Fac Was Fac Fac Fac Upp Upp War Pro Fac Distress Signals 8 | . 2 1 5 . . . . . . . . . . . . Communications Jammed . | . . . . . . . . . . . . . . . . Distress Signals . | . . . . . . . . . . . . . . . . Times Spotted 179 | . 11 3 17 3 5 . 6 25 2 10 15 15 26 30 11 Peak Tracking Total 10 | . 5 3 6 3 2 . 6 5 1 6 5 8 10 6 7 Tactical Retreats 7 | . . 1 . . . . . . . . 1 . 1 3 1 Traps | -11 -10 -10 -9 -9 -8 -7 -7 -7 -6 -5 -5 -5 -5 -4 -4 ------- Run | Yrd Mat Min Mat Min Mat Fac Was Fac Fac Fac Upp Upp War Pro Fac Traps Triggered 10 | . 1 . . . . 1 . 4 . 2 . . 1 . 1 Indirectly 3 | . . . . . . . . 3 . . . . . . . Trap Hack Attempts . | . . . . . . . . . . . . . . . . Triggered . | . . . . . . . . . . . . . . . . Disarmed . | . . . . . . . . . . . . . . . . Reprogrammed 13 | . . . . . 13 . . . . . . . . . . Reused 1 | . . . . . 1 . . . . . . . . . . Traps Extracted . | . . . . . . . . . . . . . . . . Installed . | . . . . . . . . . . . . . . . . Triggered 12 | . . . . . 1 . . . . . 1 . 8 2 . Machines | -11 -10 -10 -9 -9 -8 -7 -7 -7 -6 -5 -5 -5 -5 -4 -4 ---------- Run | Yrd Mat Min Mat Min Mat Fac Was Fac Fac Fac Upp Upp War Pro Fac Machines Disabled 27 | . . . . . 2 . . 20 . 3 2 . . . . Max in Single Turn 6 | . . . . . 1 . . 6 . 2 2 . . . . Garrison Access 1 | . . . . . . . . 1 . . . . . . . Machines Repaired . | . . . . . . . . . . . . . . . . Machines Dismantled . | . . . . . . . . . . . . . . . . Machines Sabotaged . | . . . . . . . . . . . . . . . . Overloaded Fab Kills . | . . . . . . . . . . . . . . . . Hacking | -11 -10 -10 -9 -9 -8 -7 -7 -7 -6 -5 -5 -5 -5 -4 -4 --------- Run | Yrd Mat Min Mat Min Mat Fac Was Fac Fac Fac Upp Upp War Pro Fac Machines Accessed 19 | . 1 . 1 . 3 1 . 9 . 3 . . . . 1 Terminals 11 | . 1 . 1 . 3 . . 3 . 2 . . . . 1 Fabricators 2 | . . . . . . . . 1 . 1 . . . . . Repair Stations 3 | . . . . . . 1 . 2 . . . . . . . Recycling Units . | . . . . . . . . . . . . . . . . Scanalyzers 1 | . . . . . . . . 1 . . . . . . . Garrison Access 2 | . . . . . . . . 2 . . . . . . . Total Hacks 52 | . 2 . 2 . 12 8 . 19 . 7 . . . . 2 Successful 24 | . 1 . 2 . 6 7 . 7 . 1 . . . . . Failed 28 | . 1 . . . 6 1 . 12 . 6 . . . . 2 Catastrophic 13 | . 1 . . . 2 . . 5 . 3 . . . . 2 Database Lockouts . | . . . . . . . . . . . . . . . . Manual 2 | . . . . . . . . . . . 1 . 1 . . Terminals 29 | . 2 . 2 . 12 . . 5 . 6 . . . . 2 Fabricators 3 | . . . . . . . . 2 . 1 . . . . . Repair Stations 14 | . . . . . . 8 . 6 . . . . . . . Recycling Units . | . . . . . . . . . . . . . . . . Scanalyzers 2 | . . . . . . . . 2 . . . . . . . Garrison Access 4 | . . . . . . . . 4 . . . . . . . Terminal Hacks 12 | . 1 . 2 . 6 . . 2 . 1 . . . . . Open DSF 1 | . . . . . . . . 1 . . . . . . . Emergency Access Points 1 | . . . 1 . . . . . . . . . . . . Unreport Threat 1 | . . . . . . . . . . 1 . . . . . Locate Traps 5 | . 1 . 1 . 2 . . 1 . . . . . . . Reprogram Traps 3 | . . . . . 3 . . . . . . . . . . Zone Layout 1 | . . . . . 1 . . . . . . . . . . Fabricator Hacks 1 | . . . . . . . . 1 . . . . . . . Network Status 1 | . . . . . . . . 1 . . . . . . . Repair Station Hacks 10 | . . . . . . 7 . 3 . . . . . . . Scan Component 6 | . . . . . . 4 . 2 . . . . . . . Repair 4 | . . . . . . 3 . 1 . . . . . . . Recycling Unit Hacks . | . . . . . . . . . . . . . . . . Scanalyzer . | . . . . . . . . . . . . . . . . Garrison Access Hacks 1 | . . . . . . . . 1 . . . . . . . Seal Access 1 | . . . . . . . . 1 . . . . . . . Unauthorized Hacks . | . . . . . . . . . . . . . . . . Terminals . | . . . . . . . . . . . . . . . . Fabricators . | . . . . . . . . . . . . . . . . Repair Stations . | . . . . . . . . . . . . . . . . Recycling Units . | . . . . . . . . . . . . . . . . Scanalyzers . | . . . . . . . . . . . . . . . . Garrison Access . | . . . . . . . . . . . . . . . . Data Cores Recovered 1 | . . . . . . . . 1 . . . . . . . Used . | . . . . . . . . . . . . . . . . Hacking Detections 17 | . 1 . 1 . 3 1 . 7 . 3 . . . . 1 Full Trace Events 6 | . . . . . 1 . . 4 . . . . . . 1 Feedback Events 1 | . . . . . . . . 1 . . . . . . . Corruption 1 | . . . . . . . . 1 . . . . . . . Feedback Blocked . | . . . . . . . . . . . . . . . . Robot Schematics Acquired . | . . . . . . . . . . . . . . . . Robots Built . | . . . . . . . . . . . . . . . . Authchips . | . . . . . . . . . . . . . . . . Time . | . . . . . . . . . . . . . . . . Total Robot Build Rating . | . . . . . . . . . . . . . . . . Part Schematics Acquired . | . . . . . . . . . . . . . . . . Parts Built . | . . . . . . . . . . . . . . . . Authchips . | . . . . . . . . . . . . . . . . Time . | . . . . . . . . . . . . . . . . Total Part Build Rating . | . . . . . . . . . . . . . . . . Parts Repaired 4 | . . . . . . 3 . 1 . . . . . . . Time 129 | . . . . . . 90 . 39 . . . . . . . Parts Recycled . | . . . . . . . . . . . . . . . . Recycled Matter . | . . . . . . . . . . . . . . . . Retrieved Matter . | . . . . . . . . . . . . . . . . Retrieved Components . | . . . . . . . . . . . . . . . . Parts Scanalyzed . | . . . . . . . . . . . . . . . . Part Schematics Acquired . | . . . . . . . . . . . . . . . . Parts Damaged . | . . . . . . . . . . . . . . . . Bothacking | -11 -10 -10 -9 -9 -8 -7 -7 -7 -6 -5 -5 -5 -5 -4 -4 ------------ Run | Yrd Mat Min Mat Min Mat Fac Was Fac Fac Fac Upp Upp War Pro Fac Used RIF Installer . | . . . . . . . . . . . . . . . . Robots Hacked . | . . . . . . . . . . . . . . . . Non-combat . | . . . . . . . . . . . . . . . . Combat . | . . . . . . . . . . . . . . . . Robot Hacks Applied . | . . . . . . . . . . . . . . . . Relay Couplers Released . | . . . . . . . . . . . . . . . . Fabnet Peak Effective % . | . . . . . . . . . . . . . . . . Robots Rewired . | . . . . . . . . . . . . . . . . Allies Hacked . | . . . . . . . . . . . . . . . . Hacks Repelled . | . . . . . . . . . . . . . . . . Allies | -11 -10 -10 -9 -9 -8 -7 -7 -7 -6 -5 -5 -5 -5 -4 -4 -------- Run | Yrd Mat Min Mat Min Mat Fac Was Fac Fac Fac Upp Upp War Pro Fac Total Allies 1 | . . 1 . . . . . . . . . . . . . Largest Group 1 | . . 1 1 . . . . . . . . . . . . Highest-Rated Group 31 | . . 31 31 . . . . . . . . . . . . Highest-Rated Ally 31 | . . 31 31 . . . . . . . . . . . . Total Orders . | . . . . . . . . . . . . . . . . Ally Attacks 12 | . . 8 4 . . . . . . . . . . . . Total Damage 62 | . . 42 20 . . . . . . . . . . . . Kills 3 | . . 2 1 . . . . . . . . . . . . Allies Corrupted . | . . . . . . . . . . . . . . . . Allies Melted . | . . . . . . . . . . . . . . . . Intel | -11 -10 -10 -9 -9 -8 -7 -7 -7 -6 -5 -5 -5 -5 -4 -4 ------- Run | Yrd Mat Min Mat Min Mat Fac Was Fac Fac Fac Upp Upp War Pro Fac Robot Analysis Total . | . . . . . . . . . . . . . . . . Derelict Logs Recovered 2 | . . . . . . . . . . . 1 1 . . . Drone Launches . | . . . . . . . . . . . . . . . . Drone Recoveries . | . . . . . . . . . . . . . . . . Exploration | -11 -10 -10 -9 -9 -8 -7 -7 -7 -6 -5 -5 -5 -5 -4 -4 ------------- Run | Yrd Mat Min Mat Min Mat Fac Was Fac Fac Fac Upp Upp War Pro Fac Turns Passed 10644 | 92 345 186 444 66 213 135 148 1150 187 513 1275 2443 884 2244 319 Spaces Moved 4186 | 52 225 144 281 23 146 35 178 700 144 354 635 536 330 287 116 Core 357 | 5 . . . . . . 150 . . . . 25 . 120 57 Treads . | . . . . . . . . . . . . . . . . Legs 917 | . . . . . . . . . . . . 420 330 167 . Wheels 2911 | 47 225 144 281 23 146 35 28 700 144 354 635 91 . . 58 Hover . | . . . . . . . . . . . . . . . . Flight 1 | . . . . . . . . . . . . . . . 1 Fastest Speed 50 | 50 90 90 100 105 105 105 50 101 101 110 110 190 190 190 50 Average Speed 210 | 86 95 104 104 114 105 105 60 120 104 111 170 431 250 712 93 Slowest Speed 1955 | 90 105 105 105 135 105 105 350 170 123 130 230 1650 260 1350 1955 Overloaded Moves . | . . . . . . . . . . . . . . . . Propulsion Burnouts . | . . . . . . . . . . . . . . . . Robots Hopped . | . . . . . . . . . . . . . . . . Cave-ins Triggered . | . . . . . . . . . . . . . . . . Exploration Rate (%) 31 | 4 49 31 29 6 18 2 75 28 6 12 79 70 46 41 3 Regions Visited 15 Branch Regions 6 Pre-discovered Areas . | . . . . . . . . . . . . . . . . Known Exits Taken . | . . . . . . . . . . . . . . . . Unknown Exits Taken 13 | 1 1 1 1 1 1 . . 1 1 1 1 1 1 1 . Scrap Searched 4 | . . 1 . . . . . . . . 2 1 . . . Spaces Dug 4 | . . . . . . . . . 1 . . . . 3 . Terrain Destroyed 167 | . 32 . . . . . . 18 6 3 23 35 . 49 1 Melee . | . . . . . . . . . . . . . . . . Projectile 80 | . . . . . . . . 10 6 3 17 20 . 23 1 AOE 87 | . 32 . . . . . . 8 . . 6 15 . 26 . Terrain Rammed . | . . . . . . . . . . . . . . . . Walls Destroyed . | . . . . . . . . . . . . . . . . Machines Disabled . | . . . . . . . . . . . . . . . . Actions | -11 -10 -10 -9 -9 -8 -7 -7 -7 -6 -5 -5 -5 -5 -4 -4 --------- Run | Yrd Mat Min Mat Min Mat Fac Was Fac Fac Fac Upp Upp War Pro Fac Total 5367 | 82 313 163 366 38 175 134 199 898 166 444 732 599 392 397 269 Wait 419 | 2 39 3 12 . 3 89 4 79 . 45 22 8 30 23 60 Move 4172 | 51 224 143 280 22 145 35 177 699 143 353 634 535 329 286 116 Hop . | . . . . . . . . . . . . . . . . Pick Up 161 | 13 14 3 12 . 2 3 3 31 8 8 14 13 11 10 16 Fast Attach 21 | . . . 3 1 4 . . 4 . 2 . . 4 . 3 Attach 119 | 7 4 1 2 1 1 6 1 20 5 2 15 14 2 19 19 Detach 7 | . . . . 1 . . 1 1 . . . 1 2 . 1 Swap 29 | . 7 2 6 1 2 . . 3 2 1 1 . 4 . . Drop 79 | . 3 2 19 1 5 1 4 9 2 6 3 2 10 4 8 Fire 308 | 9 22 9 32 11 13 . 9 43 6 11 38 26 . 52 27 Melee . | . . . . . . . . . . . . . . . . Ram 20 | . . . . . . . . 1 . . . . . . 19 Kick 3 | . . . . . . . . . . . . . . 3 . Crush . | . . . . . . . . . . . . . . . . Escape Stasis 24 | . . . . . . . . 8 . 16 . . . . . Rewire 5 | . . . . . . . . . . . 5 . . . . Trap . | . . . . . . . . . . . . . . . . Miscellaneous . | . . . . . . . . . . . . . . . . Route ------- -11/Scrapyard -10/Materials -10/Mines (discovered 2 exits: *Mat x2) -9/Materials -9/Mines -8/Materials -7/Factory -7/Waste -7/Factory -6/Factory -5/Factory -5/Upper Caves -5/Upper Caves -5/Warlord -4/Proximity Caves -4/Factory History --------- Turn | Location | Event 40 | -11/Scrapyard | Discovered new exit (range 15) 93 | -11/Scrapyard | Entered Materials 318 | -10/Materials | Lost 3 parts (1u2w) 321 | -10/Materials | Build established: Mutant 389 | -10/Materials | Discovered new exit (range 9) 438 | -10/Materials | Entered Mines 449 | -10/Mines | Received a Mining Laser from a helpful Derelict 527 | -10/Mines | Discovered new exit (range 8) 542 | -10/Mines | Discovered new exit (range 7) 624 | -10/Mines | Entered Materials 624 | -9/Materials | Accompanied by 1 ally 624 | -9/Materials | Evolved 2 slots: Utility x1, Weapon x1 992 | -9/Materials | Build established: Scavenger-Tank 1009 | -9/Materials | Discovered new exit (range 16) 1068 | -9/Materials | Entered Mines 1124 | -9/Mines | Discovered new exit (range 3) 1134 | -9/Mines | Entered Materials 1134 | -8/Materials | Evolved 2 slots: Utility x1, Weapon x1 1327 | -8/Materials | Discovered new exit (range 8) 1347 | -8/Materials | Entered Factory 1347 | -7/Factory | Evolved 2 slots: Power x1, Propulsion x1 1409 | -7/Factory | Repaired Arm. Wheel 1444 | -7/Factory | Repaired Arm. Wheel 1472 | -7/Factory | Repaired Med. Laser 1482 | -7/Factory | Sucked down chute 1482 | -7/Factory | Entered Waste 1489 | -7/Waste | Spotted C-40 Crusher 1527 | -7/Waste | Spotted C-40 Crusher 1535 | -7/Waste | Crushed by Compactor (1 part destroyed, 2 dropped) 1538 | -7/Waste | Crushed by Compactor (1 part destroyed, 1 dropped) 1541 | -7/Waste | Crushed by Compactor (1 part destroyed, 2 dropped) 1544 | -7/Waste | Crushed by Compactor (1 part destroyed, 1 dropped) 1545 | -7/Waste | Spotted C-40 Crusher 1567 | -7/Waste | Spotted C-40 Crusher 1567 | -7/Waste | Spotted C-40 Crusher 1575 | -7/Waste | Lost 6 parts (1p2u3w) 1580 | -7/Waste | Spotted C-40 Crusher 1597 | -7/Waste | Found Imp. Powered Armor 1624 | -7/Waste | Discovered new exit (range 13) 1630 | -7/Waste | Entered Factory 2068 | -7/Factory | Repaired Broken Hvy. Mass Driver 2166 | -7/Factory | System corruption reached 10% 2746 | -7/Factory | Discovered new exit (range 15) 2780 | -7/Factory | Entered another Factory area 2780 | -6/Factory | Evolved 2 slots: Propulsion x1, Weapon x1 2922 | -6/Factory | Discovered new exit (range 16) 2967 | -6/Factory | Entered another Factory area 2967 | -5/Factory | Evolved 2 slots: Power x1, Utility x1 3442 | -5/Factory | Discovered new exit (range 12) 3465 | -5/Factory | Garrison activated, responded to threat 3480 | -5/Factory | Entered Upper Caves 3498 | -5/Upper Caves | Attracted the attention of an 0b10 checkpoint 3656 | -5/Upper Caves | Acquired the password to a Derelict Tinkerer's latest research 3808 | -5/Upper Caves | Caught by Unaware searching for contraband prototypes 3808 | -5/Upper Caves | Caught by Unaware searching for contraband prototypes 3886 | -5/Upper Caves | Lost 12 parts (2p3n1u6w) 3889 | -5/Upper Caves | Found Prototype Special Weapon 3890 | -5/Upper Caves | Identified Molecular Deconstructor 4080 | -5/Upper Caves | Lost 3 parts (1n2u) 4518 | -5/Upper Caves | Learned Factory terminal intel 4529 | -5/Upper Caves | Spotted B-75 Beast 4552 | -5/Upper Caves | Destroyed B-75 Beast 4698 | -5/Upper Caves | Discovered new exit (range 13) 4755 | -5/Upper Caves | Entered another Upper Caves area 5399 | -5/Upper Caves | System corruption reached 10% 6530 | -5/Upper Caves | Learned Factory interactive machine intel 6774 | -5/Upper Caves | Destroyed 8 combat bots 6804 | -5/Upper Caves | System corruption reached 30% 7076 | -5/Upper Caves | Spotted B-75 Beast 7128 | -5/Upper Caves | Destroyed B-75 Beast 7152 | -5/Upper Caves | Lost 4 parts (1n3u) 7157 | -5/Upper Caves | Discovered new exit (range 13) 7198 | -5/Upper Caves | Entered Warlord 7293 | -5/Warlord | System corruption cleaned by Quarantine Array 7511 | -5/Warlord | Met Warlord 7536 | -5/Warlord | Warlord's base attacked by MAIN.C 7886 | -5/Warlord | Warlord forces counterattacked 7936 | -5/Warlord | Spotted Striker 7941 | -5/Warlord | Spotted B-75 Beast 7972 | -5/Warlord | Spotted B-86 Titan 7979 | -5/Warlord | Spotted Executioner 8024 | -5/Warlord | Lost 19 allies 8057 | -5/Warlord | Discovered new exit (range 15) 8082 | -5/Warlord | Entered Proximity Caves 8084 | -4/Proximity Caves | Spotter reported a threat 8085 | -4/Proximity Caves | Spotter reported a threat 8105 | -4/Proximity Caves | Lost 5 allies 8137 | -4/Proximity Caves | Spotter reported a threat 8225 | -4/Proximity Caves | Found Corrupted Imp. Powered Armor 8485 | -4/Proximity Caves | Spotted B-86 Titan 8546 | -4/Proximity Caves | Lost 5 parts (2n1u2w) 8659 | -4/Proximity Caves | Spotter reported a threat 8668 | -4/Proximity Caves | Destroyed 8 combat bots 8670 | -4/Proximity Caves | Lost 8 parts (3p1n1u3w) 8737 | -4/Proximity Caves | Spotter reported a threat 8790 | -4/Proximity Caves | Spotter reported a threat 9404 | -4/Proximity Caves | Spotter reported a threat 9505 | -4/Proximity Caves | Spotter reported a threat 9775 | -4/Proximity Caves | Spotter reported a threat 9842 | -4/Proximity Caves | Spotter reported a threat 9942 | -4/Proximity Caves | Spotter reported a threat 9980 | -4/Proximity Caves | Core integrity fell below 50% 10017 | -4/Proximity Caves | Core integrity fell below 20% 10064 | -4/Proximity Caves | Lost 11 parts (2p4u5w) 10118 | -4/Proximity Caves | Discovered new exit (range 14) 10282 | -4/Proximity Caves | Build established: Scavenger-Mutant 10326 | -4/Proximity Caves | Entered Factory 10326 | -4/Factory | Evolved 2 slots: Utility x1, Weapon x1 10327 | -4/Factory | Loaded intel: 51 interactive machine locations 10328 | -4/Factory | Loaded intel: 25 terminal locations 10328 | -4/Factory | System corruption reached 10% 10474 | -4/Factory | Lost 9 parts (2p1n2u4w) 10573 | -4/Factory | Core integrity fell below 50% 10601 | -4/Factory | Core integrity fell below 20% 10615 | -4/Factory | Search patrols dispatched 10626 | -4/Factory | Lost 12 parts (2p3n4u3w) 10645 | -4/Factory | Destroyed by Y-64 Sentinel with Wave Gun Last Messages --------------- 10620_ Penetrated by Slug. 10620_ Slammed into H-71 Marshal. 10620_ Slug penetrates Wall. 10621_ Slammed into H-71 Marshal. 10623_ R-10 Processor collects Med. Matter Pod. 10624_ Slug penetrates Wall. 10625_ Triggered Blade Trap. 10625_ Massive razor-sharp blades shoot up from within the floor. 10634_ Acquired Prototype Energy Gun. 10634_ Identified Hvy. Tesla Rifle. 10636_ Acquired Hvy. Tesla Rifle. 10637_ Penetrated by Slug. 10638_ Dropped Energy Well. 10639_ Extracted 16 energy. 10640_ Extracted 75 energy. 10640_ Slug penetrates Wall. 10642_ System corrupted: Hvy. Tesla Rifle failed to cycle. 10642_ Y-64 Sentinel misfires. 10642_ Slug penetrates Wall. 10643_ Extracted 35 energy. Map ----- +----------------------------------------------------+ | ???????????????????????????????????# | | ???????????????????????????????????# | | ????????????????????????"??????????# | | ????????????????????????T??????????+ | | ????????????###########?"??????????# | | ????????????# ] #????????????# # | | ????????????# #############" # | | ????????????# # | | ????????????# # | | ????????????+ ^ # | | ?????????"""# + | | ?????????"""# # | | ??????????R"# #######"##/""! % # | | ?????????"""# ## %%% !% % # | | ?????????""?#####x###### """%""" #% # | | ????????????# x ## """ """ # = # | | ????????????#""" """ ## """ """ # %# | | ????????????#"R """ ## # % # | | ????????????#""" """ ## """ # # | | ????????????# ## """ # % # | | ????????????# """ """ ## "" """ # %" | | ????????????# """ """ ## "" ###"### | | ????????????# """ """ ## "T """ #?###?? | | ????????????# Y # "" """ #?????? | | ????????????# [! ## "" """ #?????? | | ????????????# [[@ ## ! #?????? | | ????????????#] ![ #############??????? | | ????????????# ! #??????????????????? | | ????????????# #??????????????????? | | ????????????# #??????????????????? | | ????????????# #??????????????????? | | ????????????#+#########??????????????????? | | ?????????????????????????????????????????? | | ?????????????????????????????????????????? | | ?????????????????????????????????????????? | | ?????????????????????????????????????????? | | ?????????????????????????????????????????? | | ?????????????????????????????????????????? | | ?????????????????????????????????T???????? | | ?????????????????????????????????????????? | | ?????????????????????????????????????????? | | ?????????????????????????????????????????? | | ?????????????????????????????????????????? | | ?????????????????????????????????????????? | | ?????????????????????????????????????????? | | ?????????????????????????????????????????? | | ?????????????????????????????????????????? | | ?????????????????????????????????????????? | | ?????????????????????????????????????????? | | ?????????????????????????????????????????? | +----------------------------------------------------+ Best States ------------- Heat Dissipation 100 Coolant Potential 65 Energy Generation 50 Energy Capacity 455 Matter Stores 300 Matter Capacity 300 Sight Range 16 Robot Scan Range 15 Terrain Scan Density 10 Armor Coverage 625 Resistance: KI 20 Resistance: TH 15 Resistance: EX 50 Resistance: EM 20 Power Shielding 66 Evasion (%) 50 Particle Charging 25 Item Schematics ----------------- None Robot Schematics ------------------ None Fabricated ------------ Nothing Alien Tech Used ----------------- None Achievements -------------- Deconstruction Challenges ------------ None Game ------ Seed LayeredArchitectThruster Manual? 0 Play Time 01:48:09 Cumulative 41.3 hours Start 2025.02.23 @ 13:19:17 End 2025.02.23 @ 15:06:28 Sessions 1 Manual Loads 0 Difficulty Rogue Special Mode None Game No. 39 Rogue 39 Adventurer 0 Explorer 0 Win Type - Total 0 Types 0/0/0/0/0/0/0/0/0 Lore% 3 Gallery% 29 Achievement% 24 Wizard Run 0 Options --------- Layout 0 ASCII 0 Keyboard 0 Movement Mouse Keybinds 0 Fullscreen 2 Font 12/Smallcaps Map View 41x27 Zoom Use 99% Tactical HUD 1 Map Filters NONE Filters NONE Steam 1 RUN: 1ae8e260-32a3-43b6-9e7a-f29375beaa70